[Event "Early-Titled-Tuesday-Blitz-May-14-2024"]
[Site "Chess.com"]
[Date "2024.05.14"]
[Round "1"]
[White "Anu-triz"]
[Black "Thjop"]
[Result "0-1"]
[WhiteElo "2271"]
[BlackElo "2609"]
[TimeControl "180+1"]
[EndTime "8:06:30 PDT"]
[Termination "Thjop won by resignation"]

1. e4 {[%clk 0:03:00.9]} 1... e6 {[%clk 0:02:56]} 2. d4 {[%clk 0:03:00]} 2... d5
{[%clk 0:02:56.9]} 3. Nc3 {[%clk 0:02:58.6]} 3... Bb4 {[%clk 0:02:57]} 4. e5
{[%clk 0:02:53.1]} 4... c5 {[%clk 0:02:56.7]} 5. Qg4 {[%clk 0:02:51.5]} 5... Ne7
{[%clk 0:02:52.1]} 6. a3 {[%clk 0:02:48.9]} 6... Bxc3+ {[%clk 0:02:46]} 7. bxc3
{[%clk 0:02:49.8]} 7... cxd4 {[%clk 0:02:36.5]} 8. cxd4 {[%clk 0:02:48.4]} 8...
O-O {[%clk 0:02:32.8]} 9. Bd3 {[%clk 0:02:46.9]} 9... Nbc6 {[%clk 0:02:30.2]}
10. Ne2 {[%clk 0:02:46.5]} 10... f6 {[%clk 0:02:10.6]} 11. exf6 {[%clk
0:02:43.6]} 11... Rxf6 {[%clk 0:02:11]} 12. O-O {[%clk 0:02:42]} 12... e5 {[%clk
0:02:09.4]} 13. Qg3 {[%clk 0:02:29.7]} 13... e4 {[%clk 0:02:05.9]} 14. Bg5
{[%clk 0:02:21.2]} 14... Rg6 {[%clk 0:02:01.6]} 15. Nf4 {[%clk 0:02:19.8]} 15...
exd3 {[%clk 0:01:58.1]} 16. Nxg6 {[%clk 0:02:18.9]} 16... hxg6 {[%clk
0:01:58.5]} 17. cxd3 {[%clk 0:02:10.5]} 17... Bf5 {[%clk 0:01:41.1]} 18. Rfe1
{[%clk 0:02:06.8]} 18... Qd7 {[%clk 0:01:41.3]} 19. Rab1 {[%clk 0:02:00.4]}
19... Re8 {[%clk 0:01:36.3]} 20. h3 {[%clk 0:01:57.2]} 20... b6 {[%clk
0:01:34.1]} 21. Qf3 {[%clk 0:01:38.9]} 21... Nxd4 {[%clk 0:01:31.8]} 22. Qf4
{[%clk 0:01:28.3]} 22... Ne6 {[%clk 0:01:24.1]} 23. Qe3 {[%clk 0:01:24.9]} 23...
d4 {[%clk 0:01:14.2]} 24. Qe5 {[%clk 0:01:17.1]} 24... Nxg5 {[%clk 0:01:12.3]}
25. Rbc1 {[%clk 0:01:05.8]} 25... Kf8 {[%clk 0:00:31.6]} 26. Rc7 {[%clk
0:01:03.3]} 26... Qd5 {[%clk 0:00:14.9]} 27. Rxe7 {[%clk 0:00:58.7]} 27... Qxe5
{[%clk 0:00:15.1]} 28. R7xe5 {[%clk 0:00:58.7]} 28... Rxe5 {[%clk 0:00:16]} 29.
Rxe5 {[%clk 0:00:58.9]} 29... Nf7 {[%clk 0:00:14.7]} 30. Rd5 {[%clk 0:00:57]}
30... Bxd3 {[%clk 0:00:15.3]} 31. Rxd4 {[%clk 0:00:56.8]} 31... Bf5 {[%clk
0:00:15.5]} 32. Rd8+ {[%clk 0:00:56.1]} 32... Nxd8 {[%clk 0:00:15]} 0-1

[Event "Early-Titled-Tuesday-Blitz-May-14-2024"]
[Site "Chess.com"]
[Date "2024.05.14"]
[Round "1"]
[White "Chessdude1987"]
[Black "Alonmindlin"]
[Result "0-1"]
[WhiteElo "2379"]
[BlackElo "2693"]
[TimeControl "180+1"]
[EndTime "8:06:32 PDT"]
[Termination "Alonmindlin won on time"]

1. e4 {[%clk 0:03:00.9]} 1... c5 {[%clk 0:02:58.9]} 2. Nf3 {[%clk 0:03:00.5]}
2... e6 {[%clk 0:02:59]} 3. d4 {[%clk 0:02:59.4]} 3... cxd4 {[%clk 0:02:59.9]}
4. Nxd4 {[%clk 0:03:00.2]} 4... Nf6 {[%clk 0:03:00.4]} 5. Nc3 {[%clk 0:03:00.9]}
5... Nc6 {[%clk 0:03:00.8]} 6. g3 {[%clk 0:03:01.4]} 6... d5 {[%clk 0:02:57]} 7.
Bg2 {[%clk 0:02:55.5]} 7... Bb4 {[%clk 0:02:53.3]} 8. exd5 {[%clk 0:02:37.5]}
8... exd5 {[%clk 0:02:50]} 9. Nxc6 {[%clk 0:02:32.3]} 9... bxc6 {[%clk
0:02:49.9]} 10. O-O {[%clk 0:02:32]} 10... O-O {[%clk 0:02:49.8]} 11. a3 {[%clk
0:02:24.6]} 11... Bd6 {[%clk 0:02:46.8]} 12. h3 {[%clk 0:02:17]} 12... Rb8
{[%clk 0:02:44.5]} 13. Re1 {[%clk 0:02:15.8]} 13... h6 {[%clk 0:02:37.2]} 14. b3
{[%clk 0:02:11.2]} 14... Bf5 {[%clk 0:02:35.5]} 15. Bb2 {[%clk 0:02:10]} 15...
a5 {[%clk 0:02:19.2]} 16. Na4 {[%clk 0:02:05.1]} 16... Nd7 {[%clk 0:02:16.9]}
17. Qd4 {[%clk 0:01:55.6]} 17... f6 {[%clk 0:02:16.1]} 18. f4 {[%clk 0:01:36.2]}
18... Kh8 {[%clk 0:02:10]} 19. Re2 {[%clk 0:01:33.3]} 19... Re8 {[%clk
0:01:48.9]} 20. Rae1 {[%clk 0:01:32.6]} 20... Rxe2 {[%clk 0:01:49.1]} 21. Rxe2
{[%clk 0:01:32.8]} 21... Qf8 {[%clk 0:01:50]} 22. g4 {[%clk 0:01:26.3]} 22...
Bh7 {[%clk 0:01:49.9]} 23. Qa7 {[%clk 0:01:17]} 23... Re8 {[%clk 0:01:43.1]} 24.
Qf2 {[%clk 0:01:07.3]} 24... Rxe2 {[%clk 0:01:40.6]} 25. Qxe2 {[%clk 0:01:07.6]}
25... Bxf4 {[%clk 0:01:41.2]} 26. c4 {[%clk 0:01:01.2]} 26... Ne5 {[%clk
0:01:38.5]} 27. cxd5 {[%clk 0:00:54.3]} 27... cxd5 {[%clk 0:01:39.4]} 28. Bxd5
{[%clk 0:00:51.9]} 28... Qd8 {[%clk 0:01:37.1]} 29. Nc3 {[%clk 0:00:44]} 29...
Qb6+ {[%clk 0:01:36.8]} 30. Kg2 {[%clk 0:00:41.6]} 30... Bg6 {[%clk 0:01:29.9]}
31. Nd1 {[%clk 0:00:20.6]} 31... Qd6 {[%clk 0:01:24.5]} 32. Qb5 {[%clk
0:00:12.7]} 32... Kh7 {[%clk 0:01:17.8]} 33. Nf2 {[%clk 0:00:11.8]} 33... Be3
{[%clk 0:01:02]} 34. Ne4 {[%clk 0:00:11.5]} 34... Qc7 {[%clk 0:01:02.2]} 35. Qa6
{[%clk 0:00:04.7]} 35... Qc2+ {[%clk 0:01:02.1]} 36. Kg3 {[%clk 0:00:04.7]}
36... Bxe4 {[%clk 0:01:01.9]} 0-1

[Event "Early-Titled-Tuesday-Blitz-May-14-2024"]
[Site "Chess.com"]
[Date "2024.05.14"]
[Round "1"]
[White "Balla_Tamas"]
[Black "Davidalhesa2007"]
[Result "1-0"]
[WhiteElo "2551"]
[BlackElo "1929"]
[TimeControl "180+1"]
[EndTime "8:06:33 PDT"]
[Termination "Balla_Tamas won by resignation"]

1. Nf3 {[%clk 0:02:54.1]} 1... Nf6 {[%clk 0:02:58.9]} 2. b3 {[%clk 0:02:54.1]}
2... e6 {[%clk 0:02:59.3]} 3. Bb2 {[%clk 0:02:54.7]} 3... d5 {[%clk 0:02:59.4]}
4. e3 {[%clk 0:02:55.1]} 4... Be7 {[%clk 0:02:57.2]} 5. c4 {[%clk 0:02:55.2]}
5... Nbd7 {[%clk 0:02:55.6]} 6. Nc3 {[%clk 0:02:55.1]} 6... b6 {[%clk
0:02:55.4]} 7. Be2 {[%clk 0:02:55.1]} 7... Bb7 {[%clk 0:02:55.7]} 8. O-O {[%clk
0:02:55.6]} 8... c5 {[%clk 0:02:56.2]} 9. cxd5 {[%clk 0:02:55.3]} 9... exd5
{[%clk 0:02:55.8]} 10. d4 {[%clk 0:02:55.4]} 10... O-O {[%clk 0:02:52.8]} 11.
dxc5 {[%clk 0:02:53.9]} 11... Nxc5 {[%clk 0:02:53.7]} 12. Nb5 {[%clk 0:02:51.2]}
12... a6 {[%clk 0:02:51.1]} 13. Nbd4 {[%clk 0:02:41.4]} 13... Rc8 {[%clk
0:02:40]} 14. Rc1 {[%clk 0:02:41]} 14... Nce4 {[%clk 0:02:39.1]} 15. Qd3 {[%clk
0:02:33.8]} 15... Nc5 {[%clk 0:02:24.5]} 16. Qb1 {[%clk 0:02:28.4]} 16... Qd7
{[%clk 0:02:11.3]} 17. Rfd1 {[%clk 0:02:23.5]} 17... Ne6 {[%clk 0:02:09.7]} 18.
Rxc8 {[%clk 0:02:22]} 18... Rxc8 {[%clk 0:02:10]} 19. Nf5 {[%clk 0:02:20.3]}
19... g6 {[%clk 0:01:46.4]} 20. Nxe7+ {[%clk 0:02:07.9]} 20... Qxe7 {[%clk
0:01:47.3]} 21. Nd4 {[%clk 0:02:08.2]} 21... Nxd4 {[%clk 0:01:44.5]} 22. Bxd4
{[%clk 0:02:09.1]} 22... Nd7 {[%clk 0:01:42.5]} 23. Qb2 {[%clk 0:02:00]} 23...
b5 {[%clk 0:01:17.3]} 24. Bg4 {[%clk 0:01:57.1]} 24... Rd8 {[%clk 0:01:10.8]}
25. Rc1 {[%clk 0:01:39.4]} 25... f5 {[%clk 0:01:08]} 26. Bf3 {[%clk 0:01:38.2]}
26... Nf8 {[%clk 0:00:59.4]} 27. Bf6 {[%clk 0:01:35.4]} 27... Qd7 {[%clk
0:00:57.8]} 28. Bxd8 {[%clk 0:01:35.5]} 28... Qxd8 {[%clk 0:00:58.7]} 29. Rd1
{[%clk 0:01:36]} 29... Kf7 {[%clk 0:00:52.3]} 30. Qe5 {[%clk 0:01:34.8]} 30...
Qd7 {[%clk 0:00:47.2]} 31. Bxd5+ {[%clk 0:01:34.5]} 31... Bxd5 {[%clk
0:00:48.1]} 32. Qxd5+ {[%clk 0:01:35.4]} 32... Qxd5 {[%clk 0:00:47.8]} 33. Rxd5
{[%clk 0:01:36.3]} 33... Ke6 {[%clk 0:00:48.7]} 34. Rd2 {[%clk 0:01:36]} 34...
Nd7 {[%clk 0:00:46.5]} 35. Kf1 {[%clk 0:01:36.4]} 35... Nc5 {[%clk 0:00:46.6]}
36. Ke2 {[%clk 0:01:35.7]} 36... Ne4 {[%clk 0:00:46.3]} 37. Rc2 {[%clk
0:01:36.1]} 37... Kd7 {[%clk 0:00:41.4]} 38. f3 {[%clk 0:01:36.1]} 38... Nf6
{[%clk 0:00:41]} 39. Kd3 {[%clk 0:01:32.6]} 39... Nd5 {[%clk 0:00:39.4]} 40. Kd4
{[%clk 0:01:19.7]} 40... Nb4 {[%clk 0:00:34.9]} 41. Rd2 {[%clk 0:01:20]} 41...
Nc6+ {[%clk 0:00:31.1]} 42. Kc5+ {[%clk 0:01:20]} 42... Kc7 {[%clk 0:00:26.9]}
43. Rd6 {[%clk 0:01:19.8]} 43... Ne5 {[%clk 0:00:24.6]} 44. Rxa6 {[%clk
0:01:18.6]} 1-0

[Event "Early-Titled-Tuesday-Blitz-May-14-2024"]
[Site "Chess.com"]
[Date "2024.05.14"]
[Round "1"]
[White "Skatchkov_V"]
[Black "Ariadna_Atreides"]
[Result "1-0"]
[WhiteElo "2597"]
[BlackElo "2227"]
[TimeControl "180+1"]
[EndTime "8:06:35 PDT"]
[Termination "Skatchkov_V won on time"]

1. d4 {[%clk 0:02:51.3]} 1... Nf6 {[%clk 0:02:59.1]} 2. c4 {[%clk 0:02:51.5]}
2... e6 {[%clk 0:02:59.5]} 3. Nf3 {[%clk 0:02:52.1]} 3... Bb4+ {[%clk
0:02:59.8]} 4. Nbd2 {[%clk 0:02:51.9]} 4... b6 {[%clk 0:02:58]} 5. a3 {[%clk
0:02:51.7]} 5... Bxd2+ {[%clk 0:02:57.5]} 6. Qxd2 {[%clk 0:02:52.6]} 6... Bb7
{[%clk 0:02:56.4]} 7. e3 {[%clk 0:02:52.9]} 7... O-O {[%clk 0:02:56.2]} 8. Be2
{[%clk 0:02:52.9]} 8... Qe7 {[%clk 0:02:51.2]} 9. b4 {[%clk 0:02:51.2]} 9... c5
{[%clk 0:02:44.1]} 10. Bb2 {[%clk 0:02:50.4]} 10... cxd4 {[%clk 0:02:41.1]} 11.
Nxd4 {[%clk 0:02:03.3]} 11... Bxg2 {[%clk 0:02:32.7]} 12. Rg1 {[%clk 0:02:03.5]}
12... Be4 {[%clk 0:02:33.2]} 13. h4 {[%clk 0:01:58.7]} 13... Nc6 {[%clk
0:02:22.3]} 14. Nxc6 {[%clk 0:01:56.5]} 14... dxc6 {[%clk 0:02:21.6]} 15. Qd4
{[%clk 0:01:57.2]} 15... Bg6 {[%clk 0:01:12.8]} 16. h5 {[%clk 0:01:55.1]} 16...
Rfd8 {[%clk 0:00:59.8]} 17. Qh4 {[%clk 0:01:43.3]} 17... Nd5 {[%clk 0:00:23]}
18. Qxe7 {[%clk 0:01:43]} 18... Nxe7 {[%clk 0:00:23.8]} 19. hxg6 {[%clk
0:01:43.9]} 19... hxg6 {[%clk 0:00:20.6]} 20. Rd1 {[%clk 0:01:43.8]} 20... Rxd1+
{[%clk 0:00:19.5]} 21. Kxd1 {[%clk 0:01:43.8]} 21... Rd8+ {[%clk 0:00:19.8]} 22.
Kc2 {[%clk 0:01:44.1]} 22... Nf5 {[%clk 0:00:19.1]} 23. Bf3 {[%clk 0:01:43.2]}
23... c5 {[%clk 0:00:18.6]} 24. bxc5 {[%clk 0:01:43.2]} 24... bxc5 {[%clk
0:00:18.7]} 25. Rd1 {[%clk 0:01:44.1]} 25... Rb8 {[%clk 0:00:17.6]} 26. Be5
{[%clk 0:01:43.7]} 26... Rc8 {[%clk 0:00:17.1]} 27. Bb7 {[%clk 0:01:43.3]} 27...
Re8 {[%clk 0:00:16.8]} 28. Rd7 {[%clk 0:01:43.2]} 28... g5 {[%clk 0:00:15.4]}
29. Be4 {[%clk 0:01:39]} 29... g4 {[%clk 0:00:14.7]} 30. Bxf5 {[%clk 0:01:35.7]}
30... exf5 {[%clk 0:00:15.6]} 31. Bf4 {[%clk 0:01:34]} 31... Ra8 {[%clk
0:00:14.2]} 32. Rc7 {[%clk 0:01:34.2]} 32... Re8 {[%clk 0:00:08.3]} 33. Rxc5
{[%clk 0:01:34.1]} 33... f6 {[%clk 0:00:06.3]} 34. Rxf5 {[%clk 0:01:33.6]} 34...
g5 {[%clk 0:00:04]} 35. Bg3 {[%clk 0:01:32.7]} 35... Kg7 {[%clk 0:00:04.5]} 36.
Rc5 {[%clk 0:01:32.9]} 36... Kg6 {[%clk 0:00:03.6]} 37. Rc7 {[%clk 0:01:33.4]}
37... a5 {[%clk 0:00:01.8]} 38. c5 {[%clk 0:01:34]} 38... f5 {[%clk 0:00:01.8]}
39. Rc6+ {[%clk 0:01:32]} 39... Kh5 {[%clk 0:00:01.6]} 40. Rf6 {[%clk
0:01:32.1]} 40... f4 {[%clk 0:00:01.6]} 41. exf4 {[%clk 0:01:32.1]} 41... Re2+
{[%clk 0:00:01.7]} 42. Kc3 {[%clk 0:01:31.9]} 42... Ra2 {[%clk 0:00:01.8]} 43.
Kb3 {[%clk 0:01:32]} 43... Rd2 {[%clk 0:00:01.9]} 44. Rf5 {[%clk 0:01:32.6]}
44... Kg6 {[%clk 0:00:01.7]} 45. Rxg5+ {[%clk 0:01:32.7]} 45... Kf6 {[%clk
0:00:02.2]} 46. c6 {[%clk 0:01:33.2]} 46... Rd3+ {[%clk 0:00:02.1]} 47. Kc4
{[%clk 0:01:33.3]} 47... Rd1 {[%clk 0:00:01.8]} 48. Rc5 {[%clk 0:01:32.7]} 48...
a4 {[%clk 0:00:01.3]} 49. c7 {[%clk 0:01:32.9]} 1-0

[Event "Early-Titled-Tuesday-Blitz-May-14-2024"]
[Site "Chess.com"]
[Date "2024.05.14"]
[Round "1"]
[White "toninhojit"]
[Black "brother-bear"]
[Result "1-0"]
[WhiteElo "2561"]
[BlackElo "2050"]
[TimeControl "180+1"]
[EndTime "8:06:35 PDT"]
[Termination "toninhojit won on time"]

1. d4 {[%clk 0:02:47.9]} 1... g6 {[%clk 0:02:58.1]} 2. c4 {[%clk 0:02:48.8]}
2... Bg7 {[%clk 0:02:58]} 3. e4 {[%clk 0:02:49.5]} 3... d6 {[%clk 0:02:56.3]} 4.
Nc3 {[%clk 0:02:49.2]} 4... Nc6 {[%clk 0:02:53.3]} 5. Nge2 {[%clk 0:02:48.3]}
5... e5 {[%clk 0:02:46.6]} 6. Be3 {[%clk 0:02:48.3]} 6... exd4 {[%clk
0:02:42.9]} 7. Nxd4 {[%clk 0:02:49.2]} 7... Nge7 {[%clk 0:02:43.2]} 8. Be2
{[%clk 0:02:49]} 8... O-O {[%clk 0:02:42.3]} 9. O-O {[%clk 0:02:46.6]} 9... f5
{[%clk 0:02:42.2]} 10. f3 {[%clk 0:02:32.5]} 10... f4 {[%clk 0:02:21.3]} 11. Bf2
{[%clk 0:02:30.8]} 11... Nxd4 {[%clk 0:01:57.1]} 12. Bxd4 {[%clk 0:02:31.7]}
12... Bxd4+ {[%clk 0:01:55.6]} 13. Qxd4 {[%clk 0:02:32.6]} 13... Nc6 {[%clk
0:01:55.9]} 14. Qd2 {[%clk 0:02:32.2]} 14... Be6 {[%clk 0:01:53.4]} 15. Rad1
{[%clk 0:02:31.5]} 15... Ne5 {[%clk 0:01:52.8]} 16. Qd4 {[%clk 0:02:23.5]} 16...
Qg5 {[%clk 0:01:29.3]} 17. Kh1 {[%clk 0:02:14.6]} 17... a6 {[%clk 0:01:26.9]}
18. c5 {[%clk 0:02:12.4]} 18... dxc5 {[%clk 0:01:16.9]} 19. Qxc5 {[%clk
0:02:03.5]} 19... Nxf3 {[%clk 0:01:14.3]} 20. Qxc7 {[%clk 0:01:53.9]} 20... Nh4
{[%clk 0:01:13.6]} 21. Bf3 {[%clk 0:01:50.4]} 21... Bg4 {[%clk 0:01:00.5]} 22.
Qc4+ {[%clk 0:01:45.8]} 22... Kg7 {[%clk 0:00:55]} 23. Qe2 {[%clk 0:01:46.7]}
23... h5 {[%clk 0:00:43.9]} 24. Nd5 {[%clk 0:01:11.2]} 24... Rae8 {[%clk
0:00:34.9]} 25. Qf2 {[%clk 0:00:48.3]} 25... Re5 {[%clk 0:00:17.3]} 26. Rc1
{[%clk 0:00:45.6]} 26... b5 {[%clk 0:00:05.7]} 27. Rg1 {[%clk 0:00:43.9]} 27...
Kh6 {[%clk 0:00:03.3]} 28. Rc7 {[%clk 0:00:39.4]} 1-0

[Event "Early-Titled-Tuesday-Blitz-May-14-2024"]
[Site "Chess.com"]
[Date "2024.05.14"]
[Round "1"]
[White "DenLaz"]
[Black "HowTo2Draw"]
[Result "1-0"]
[WhiteElo "3113"]
[BlackElo "2547"]
[TimeControl "180+1"]
[EndTime "8:06:36 PDT"]
[Termination "DenLaz won on time"]

1. d4 {[%clk 0:03:00.9]} 1... f5 {[%clk 0:02:59.3]} 2. Nf3 {[%clk 0:03:00.6]}
2... Nf6 {[%clk 0:02:59]} 3. g3 {[%clk 0:03:01.2]} 3... g6 {[%clk 0:02:59.3]} 4.
Bg2 {[%clk 0:03:01.4]} 4... Bg7 {[%clk 0:02:59.9]} 5. O-O {[%clk 0:03:01.4]}
5... O-O {[%clk 0:03:00.5]} 6. b3 {[%clk 0:03:01.8]} 6... d6 {[%clk 0:03:00]} 7.
Bb2 {[%clk 0:03:02.4]} 7... c6 {[%clk 0:02:59.5]} 8. c4 {[%clk 0:03:02.4]} 8...
Qc7 {[%clk 0:02:51.2]} 9. Nbd2 {[%clk 0:02:46.1]} 9... Nbd7 {[%clk 0:02:50.1]}
10. Ng5 {[%clk 0:02:40.1]} 10... Nb6 {[%clk 0:02:43.7]} 11. Rc1 {[%clk
0:02:36.5]} 11... h6 {[%clk 0:02:36.8]} 12. Ngf3 {[%clk 0:02:35.4]} 12... Be6
{[%clk 0:02:13.4]} 13. Qc2 {[%clk 0:02:33.5]} 13... Bf7 {[%clk 0:02:12.9]} 14.
e4 {[%clk 0:02:31.9]} 14... e6 {[%clk 0:01:47.4]} 15. e5 {[%clk 0:02:22.7]}
15... dxe5 {[%clk 0:01:35.7]} 16. Nxe5 {[%clk 0:02:23.6]} 16... Nbd7 {[%clk
0:01:30.7]} 17. Nxf7 {[%clk 0:02:18.7]} 17... Rxf7 {[%clk 0:01:30.4]} 18. Rfe1
{[%clk 0:02:19.3]} 18... Nf8 {[%clk 0:01:29.9]} 19. Nf3 {[%clk 0:02:18]} 19...
N6d7 {[%clk 0:01:26.4]} 20. Qe2 {[%clk 0:02:17]} 20... Re8 {[%clk 0:01:26.2]}
21. Rcd1 {[%clk 0:02:06.6]} 21... Rfe7 {[%clk 0:01:26.4]} 22. Ba3 {[%clk
0:02:02.9]} 22... Rf7 {[%clk 0:01:11.5]} 23. Ne5 {[%clk 0:01:55.7]} 23... Nxe5
{[%clk 0:01:11.5]} 24. dxe5 {[%clk 0:01:56.6]} 24... Rd8 {[%clk 0:01:06.1]} 25.
Bd6 {[%clk 0:01:53.8]} 25... Qc8 {[%clk 0:00:52.1]} 26. c5 {[%clk 0:01:53.4]}
26... Nh7 {[%clk 0:00:49.7]} 27. h4 {[%clk 0:01:52.4]} 27... Qd7 {[%clk
0:00:45.4]} 28. Qf3 {[%clk 0:01:41.2]} 28... Qe8 {[%clk 0:00:45.4]} 29. Bf1
{[%clk 0:01:40.9]} 29... Rfd7 {[%clk 0:00:45.1]} 30. Bc4 {[%clk 0:01:39.6]}
30... Kh8 {[%clk 0:00:44.9]} 31. b4 {[%clk 0:01:38.5]} 31... Bf8 {[%clk
0:00:28.1]} 32. Kg2 {[%clk 0:01:36]} 32... Qf7 {[%clk 0:00:25.5]} 33. a4 {[%clk
0:01:33.6]} 33... Bg7 {[%clk 0:00:13]} 34. b5 {[%clk 0:01:32.5]} 34... Rc8
{[%clk 0:00:12]} 35. bxc6 {[%clk 0:01:32]} 35... bxc6 {[%clk 0:00:12.9]} 36. Ba6
{[%clk 0:01:32.3]} 36... Re8 {[%clk 0:00:12.6]} 37. Qxc6 {[%clk 0:01:31.7]}
37... g5 {[%clk 0:00:10.2]} 38. Bb5 {[%clk 0:01:31.3]} 38... Red8 {[%clk
0:00:08.1]} 39. Qf3 {[%clk 0:01:31.4]} 39... g4 {[%clk 0:00:05.1]} 40. Qf4
{[%clk 0:01:29.3]} 40... Nf8 {[%clk 0:00:02.5]} 41. Bxd7 {[%clk 0:01:29]} 41...
Rxd7 {[%clk 0:00:03.4]} 42. c6 {[%clk 0:01:29.3]} 42... Ng6 {[%clk 0:00:02.9]}
43. Qc4 {[%clk 0:01:27.4]} 43... Rd8 {[%clk 0:00:03.3]} 44. c7 {[%clk
0:01:27.6]} 44... Rc8 {[%clk 0:00:03.8]} 45. Rb1 {[%clk 0:01:27.7]} 45... f4
{[%clk 0:00:04.3]} 46. Rb8 {[%clk 0:01:27.5]} 46... f3+ {[%clk 0:00:04.8]} 47.
Kg1 {[%clk 0:01:27.3]} 47... Qe8 {[%clk 0:00:05.4]} 48. Qb5 {[%clk 0:01:25.7]}
1-0

[Event "Early-Titled-Tuesday-Blitz-May-14-2024"]
[Site "Chess.com"]
[Date "2024.05.14"]
[Round "1"]
[White "Cherepov_Alexej"]
[Black "Sosat98"]
[Result "0-1"]
[WhiteElo "2439"]
[BlackElo "2771"]
[TimeControl "180+1"]
[EndTime "8:06:36 PDT"]
[Termination "Sosat98 won on time"]

1. d4 {[%clk 0:03:00.9]} 1... Nf6 {[%clk 0:02:58.9]} 2. c4 {[%clk 0:03:00]} 2...
d6 {[%clk 0:02:58.1]} 3. Nf3 {[%clk 0:02:58.5]} 3... Bg4 {[%clk 0:02:56.3]} 4.
Qb3 {[%clk 0:02:56.7]} 4... Nc6 {[%clk 0:02:44.4]} 5. Nbd2 {[%clk 0:02:24.3]}
5... Rb8 {[%clk 0:02:42.7]} 6. h3 {[%clk 0:02:14.2]} 6... Bh5 {[%clk 0:02:42.3]}
7. e3 {[%clk 0:02:02.1]} 7... e5 {[%clk 0:02:37.3]} 8. d5 {[%clk 0:02:00.6]}
8... Ne7 {[%clk 0:02:34.6]} 9. Be2 {[%clk 0:01:58]} 9... Bg6 {[%clk 0:02:33.3]}
10. Nh4 {[%clk 0:01:48.8]} 10... Nd7 {[%clk 0:02:29.6]} 11. Nxg6 {[%clk
0:01:43.2]} 11... hxg6 {[%clk 0:02:28.7]} 12. O-O {[%clk 0:01:42.6]} 12... f5
{[%clk 0:02:23.8]} 13. e4 {[%clk 0:01:34.9]} 13... Nf6 {[%clk 0:02:20.3]} 14. f4
{[%clk 0:01:19.3]} 14... exf4 {[%clk 0:02:18.2]} 15. exf5 {[%clk 0:01:17.9]}
15... Nxf5 {[%clk 0:02:08.5]} 16. Rxf4 {[%clk 0:01:16.9]} 16... Be7 {[%clk
0:02:08.3]} 17. Nf3 {[%clk 0:01:13.9]} 17... Nh5 {[%clk 0:02:05.6]} 18. Re4
{[%clk 0:01:10]} 18... Nhg3 {[%clk 0:02:05.2]} 19. Re6 {[%clk 0:01:07]} 19...
O-O {[%clk 0:02:04.4]} 20. Bd3 {[%clk 0:01:03.9]} 20... Bf6 {[%clk 0:02:04]} 21.
Bf4 {[%clk 0:01:00]} 21... Nd4 {[%clk 0:02:02]} 22. Nxd4 {[%clk 0:00:48.6]}
22... Bxd4+ {[%clk 0:02:02.9]} 23. Be3 {[%clk 0:00:49]} 23... Bxe3+ {[%clk
0:02:00.7]} 24. Rxe3 {[%clk 0:00:49.9]} 24... Qh4 {[%clk 0:01:38.5]} 25. Rae1
{[%clk 0:00:46]} 25... Qf4 {[%clk 0:01:22.5]} 26. Bxg6 {[%clk 0:00:35.1]} 26...
Qf2+ {[%clk 0:01:20]} 27. Kh2 {[%clk 0:00:35]} 27... Nf1+ {[%clk 0:01:19.2]} 28.
Rxf1 {[%clk 0:00:28]} 28... Qxf1 {[%clk 0:01:20.1]} 29. Rg3 {[%clk 0:00:14.7]}
29... Qf4 {[%clk 0:01:19.2]} 30. Qc3 {[%clk 0:00:13.2]} 30... Rf6 {[%clk
0:01:17.5]} 31. Kh1 {[%clk 0:00:05.5]} 31... Rbf8 {[%clk 0:01:14.9]} 32. Rf3
{[%clk 0:00:05.6]} 32... Qh4 {[%clk 0:00:57.4]} 33. Rxf6 {[%clk 0:00:04.2]}
33... Rxf6 {[%clk 0:00:58.3]} 34. Qd3 {[%clk 0:00:03]} 34... Qe1+ {[%clk
0:00:53.6]} 35. Kh2 {[%clk 0:00:03]} 35... Rf1 {[%clk 0:00:52]} 0-1

[Event "Early-Titled-Tuesday-Blitz-May-14-2024"]
[Site "Chess.com"]
[Date "2024.05.14"]
[Round "1"]
[White "jumpingknight20"]
[Black "Kimkibo"]
[Result "1-0"]
[WhiteElo "2740"]
[BlackElo "2410"]
[TimeControl "180+1"]
[EndTime "8:06:37 PDT"]
[Termination "jumpingknight20 won by checkmate"]

1. f4 {[%clk 0:03:00.9]} 1... e5 {[%clk 0:02:57.5]} 2. fxe5 {[%clk 0:03:00.4]}
2... d6 {[%clk 0:02:56.9]} 3. Nf3 {[%clk 0:02:58]} 3... dxe5 {[%clk 0:02:53.2]}
4. e4 {[%clk 0:02:58]} 4... Nc6 {[%clk 0:02:51.4]} 5. Bb5 {[%clk 0:02:54.3]}
5... Bd6 {[%clk 0:02:50.6]} 6. Nc3 {[%clk 0:02:50.7]} 6... Nf6 {[%clk
0:02:50.1]} 7. O-O {[%clk 0:02:47]} 7... O-O {[%clk 0:02:49.8]} 8. d3 {[%clk
0:02:42.7]} 8... Nd4 {[%clk 0:02:47.2]} 9. Nxd4 {[%clk 0:02:30.4]} 9... exd4
{[%clk 0:02:46.9]} 10. Ne2 {[%clk 0:02:30.8]} 10... Ng4 {[%clk 0:02:45.3]} 11.
h3 {[%clk 0:02:27.9]} 11... Ne3 {[%clk 0:02:22.8]} 12. Bxe3 {[%clk 0:02:27.2]}
12... dxe3 {[%clk 0:02:23.6]} 13. Rf3 {[%clk 0:02:13.6]} 13... Qg5 {[%clk
0:02:10.9]} 14. Bc4 {[%clk 0:02:13]} 14... Qe5 {[%clk 0:02:10.4]} 15. Kf1 {[%clk
0:01:15.1]} 15... Be6 {[%clk 0:02:04.3]} 16. Bb3 {[%clk 0:00:51]} 16... Bxb3
{[%clk 0:01:55.7]} 17. axb3 {[%clk 0:00:51.9]} 17... f5 {[%clk 0:01:54.3]} 18.
d4 {[%clk 0:00:34.8]} 18... Qxe4 {[%clk 0:01:51]} 19. Nc3 {[%clk 0:00:33.7]}
19... Qe7 {[%clk 0:01:39.9]} 20. Nd5 {[%clk 0:00:31.1]} 20... Qe4 {[%clk
0:01:36.2]} 21. Nxe3 {[%clk 0:00:31.3]} 21... Rae8 {[%clk 0:01:33.6]} 22. Nc4
{[%clk 0:00:26.5]} 22... Bh2 {[%clk 0:01:29.7]} 23. Qd3 {[%clk 0:00:23.9]} 23...
Qd5 {[%clk 0:01:26.3]} 24. Re1 {[%clk 0:00:18.9]} 24... b5 {[%clk 0:01:24]} 25.
Ne3 {[%clk 0:00:18.2]} 25... Qd6 {[%clk 0:01:07.2]} 26. Nxf5 {[%clk 0:00:17.5]}
26... Rxe1+ {[%clk 0:01:06.4]} 27. Kxe1 {[%clk 0:00:18.4]} 27... Qe6+ {[%clk
0:01:06.9]} 28. Kd1 {[%clk 0:00:16.8]} 28... a6 {[%clk 0:01:01.4]} 29. g4 {[%clk
0:00:11.3]} 29... Kh8 {[%clk 0:00:57.9]} 30. Re3 {[%clk 0:00:10.9]} 30... Qc6
{[%clk 0:00:57.7]} 31. Qe4 {[%clk 0:00:10.1]} 31... Qb6 {[%clk 0:00:54.2]} 32.
Qe7 {[%clk 0:00:09.6]} 32... Bd6 {[%clk 0:00:54]} 33. Qxg7# {[%clk 0:00:09]} 1-0